fUST/lending_fUST_20241130
["ID","MTS","AMOUNT","RATE_DAILY","PERIOD"]
[343856070,1732978257484,-500.0,0.00025753,3]
[343856072,1732978257493,-1690.79,0.00025753,3]
[343856074,1732978257503,-500.0,0.00025753,3]
[343856076,1732978257512,-527.43835425,0.00025753,3]
[343856078,1732978257521,-500.0,0.00025753,3]
[343856080,1732978257531,-500.0,0.00025753,3]
[343856082,1732978257542,-500.0,0.00025753,3]
[343856084,1732978257552,-500.0,0.00025753,3]
[343856086,1732978257561,-562.51,0.00025753,3]
[343856088,1732978257571,-500.0,0.00025753,3]
[343856090,1732978257580,-500.0,0.00025753,3]
[343856092,1732978257591,-500.0,0.00025753,3]
[343856094,1732978257600,-500.0,0.00025753,3]
[343856096,1732978257609,-500.0,0.00025753,3]
[343856098,1732978257618,-621.8,0.00025753,3]
[343856100,1732978257627,-340.44255898,0.00025753,3]
[343856102,1732978257637,-843.42,0.00025753,3]
[343856104,1732978257646,-500.0,0.00025753,3]
[343856106,1732978257656,-653.03,0.00025753,3]
[343856108,1732978257667,-807.02,0.00025753,3]
[343856110,1732978257676,-500.0,0.00025753,3]
[343856112,1732978257685,-3841.58,0.00025753,3]
[343856114,1732978257695,-500.0,0.00025753,3]
[343856116,1732978257704,-364.46396823,0.00025753,3]
[343856118,1732978257713,-500.0,0.00025753,3]
[343856120,1732978257723,-500.0,0.00025753,3]
[343856122,1732978257732,-541.03,0.00025753,3]
[343856124,1732978257742,-500.0,0.00025753,3]
[343856126,1732978257751,-500.0,0.00025753,3]
[343856128,1732978257760,-260.56874114,0.00025753,3]
[343856130,1732978257770,-13125.9,0.00025753,3]
[343856132,1732978257779,-500.0,0.00025753,3]
[343856134,1732978257789,-350.73219758,0.00025753,3]
[343856136,1732978257798,-500.0,0.00025753,3]
[343856138,1732978257808,-500.0,0.00025753,3]
[343856140,1732978257817,-8701.11,0.00025753,3]
[343856142,1732978257826,-610.5926614,0.00025753,3]
[343856144,1732978257836,-2444.37,0.00025753,3]
[343856146,1732978257846,-500.0,0.00025753,3]
[343856148,1732978257855,-647.65,0.00025753,3]
[343856150,1732978257864,-587.99,0.00025753,3]
[343856153,1732978257875,-500.0,0.00025753,3]
[343856154,1732978257886,-500.0,0.00025753,3]
[343856156,1732978257896,-500.0,0.00025753,3]
[343856158,1732978257905,-495.0,0.00025753,3]
[343856161,1732978257915,-2719.67,0.00025753,3]
[343856163,1732978257924,-500.0,0.00025753,3]
[343856165,1732978257933,-2735.5,0.00025753,2]
[343856167,1732978257943,-500.0,0.00025753,3]
[343856168,1732978257953,-500.0,0.00025753,3]
[343856171,1732978257963,-596.5,0.00025753,3]
[343856173,1732978257973,-390.68479313,0.00025753,3]
[343856174,1732978257982,-500.0,0.00025753,3]
[343856176,1732978257992,-866.85,0.00025753,3]
[343856179,1732978258001,-500.0,0.00025753,3]
[343856181,1732978258011,-500.0,0.00025753,3]
[343856183,1732978258021,-500.0,0.00025753,3]
[343856185,1732978258031,-500.0,0.00025753,3]
[343856187,1732978258040,-3630.19,0.00025753,3]
[343856189,1732978258051,-500.0,0.00025753,3]
[343856191,1732978258062,-760.16,0.00025753,3]
[343856193,1732978258071,-1479.53,0.00025753,3]
[343856195,1732978258081,-500.0,0.00025753,3]
[343856197,1732978258091,-502.02,0.00025753,3]
[343856199,1732978258101,-775.18,0.00025753,3]
[343856201,1732978258110,-500.0,0.00025753,3]
[343856203,1732978258120,-500.0,0.00025753,3]
[343856205,1732978258133,-500.0,0.00025753,3]
[343856207,1732978258142,-250.297,0.00025754,2]
[343856209,1732978258152,-823.0,0.00025816,2]
[343856211,1732978258162,-1411.78177134,0.0002582,2]
[343856213,1732978258171,-5819.65299312,0.00025827,7]
[343856215,1732978258181,-1003.74421095,0.00026,2]
[343856217,1732978258190,-9617.10407296,0.00026,3]
[343856219,1732978258199,-693.14152626,0.00026027,7]
[343856221,1732978258209,-500.0,0.00026027,7]
[343856223,1732978258219,-467.82329849,0.00026027,3]
[343856225,1732978258228,-500.0,0.00026027,3]
[343856227,1732978258237,-500.0,0.00026027,3]
[343856228,1732978258247,-556.71,0.00026027,3]
[343856231,1732978258257,-500.0,0.00026027,3]
[343856233,1732978258267,-500.0,0.00026027,3]
[343856234,1732978258277,-711.92,0.00026027,3]
[343856236,1732978258286,-500.0,0.00026027,3]
[343856239,1732978258297,-500.0,0.00026027,3]
[343856241,1732978258307,-245.67654299,0.00026027,3]
[343856243,1732978258316,-200.0,0.00026027,3]
[343856245,1732978258326,-755.26,0.00026027,3]
[343856247,1732978258335,-500.0,0.00026027,3]
[343856248,1732978258344,-299.01,0.00026027,3]
[343856250,1732978258353,-160.9,0.00026027,3]
[343856252,1732978258363,-500.0,0.00026027,3]
[343856254,1732978258372,-500.0,0.00026027,3]
[343856256,1732978258383,-500.0,0.00026027,3]
[343856258,1732978258392,-500.0,0.00026027,3]
[343856260,1732978258402,-500.0,0.00026027,3]
[343856270,1732978258484,-500.0,0.00026027,3]
[343856272,1732978258494,-711.86,0.00026027,3]
[343856274,1732978258504,-500.0,0.00026027,3]
[343856276,1732978258513,-500.0,0.00026027,3]
[343856278,1732978258523,-521.30906388,0.00026027,3]
[343856280,1732978258533,-500.0,0.00026027,3]
[343856282,1732978258542,-500.0,0.00026027,3]
[343856283,1732978258551,-500.0,0.00026027,3]
[343856285,1732978258561,-500.0,0.00026027,3]
[343856287,1732978258570,-500.0,0.00026027,3]
[343856289,1732978258580,-874.23,0.00026027,3]
[343856291,1732978258590,-500.0,0.00026027,3]
[343856293,1732978258599,-870.24,0.00026027,3]
[343856295,1732978258608,-500.0,0.00026027,3]
[343856297,1732978258618,-795.2,0.00026027,3]
[343856299,1732978258628,-500.0,0.00026027,3]
[343856301,1732978258639,-3086.24,0.00026027,3]
[343856303,1732978258648,-500.0,0.00026027,3]
[343856305,1732978258657,-500.0,0.00026027,3]
[343856307,1732978258667,-508.38587082,0.00026027,3]
[343856309,1732978258676,-699.85,0.00026027,3]
[343856311,1732978258686,-1136.5,0.00026027,3]
[343856313,1732978258696,-500.0,0.00026027,3]
[343856315,1732978258706,-500.0,0.00026027,3]
[343856317,1732978258715,-884.14,0.00026027,3]
[343856319,1732978258725,-540.83731096,0.00026027,3]
[343856321,1732978258735,-500.0,0.00026027,3]
[343856323,1732978258744,-500.0,0.00026027,3]
[343856325,1732978258754,-500.0,0.00026027,3]
[343856327,1732978258763,-500.0,0.00026027,3]
[343856329,1732978258774,-534.25,0.00026027,3]
[343856331,1732978258783,-500.0,0.00026027,3]
[343856333,1732978258793,-500.0,0.00026027,3]
[343856335,1732978258803,-500.0,0.00026027,3]
[343856337,1732978258814,-500.0,0.00026027,3]
[343856339,1732978258824,-612.71,0.00026027,3]
[343856341,1732978258833,-500.0,0.00026027,3]
[343856343,1732978258843,-633.02241166,0.00026027,3]
[343856345,1732978258853,-500.0,0.00026027,3]
[343856347,1732978258863,-500.0,0.00026027,3]
[343856349,1732978258872,-500.0,0.00026027,3]
[343856350,1732978258883,-819.07,0.00026027,3]
[343856352,1732978258893,-478.45928932,0.00026027,3]
[343856354,1732978258903,-597.73693504,0.00026027,3]
[343856356,1732978258912,-500.0,0.00026027,3]
[343856358,1732978258922,-642.87,0.00026027,3]
[343856360,1732978258931,-959.64,0.00026027,3]
[343856362,1732978258940,-500.0,0.00026027,3]
[343856364,1732978258950,-500.0,0.00026027,3]
[343856366,1732978258959,-500.0,0.00026027,3]
[343856368,1732978258969,-500.0,0.00026027,3]
[343856370,1732978258979,-500.0,0.00026027,3]
[343856372,1732978258988,-500.0,0.00026027,3]
[343856374,1732978258998,-500.0,0.00026027,3]
[343856376,1732978259008,-3373.93,0.00026027,3]
[343856378,1732978259017,-512.49,0.00026027,3]
[343856380,1732978259026,-500.0,0.00026027,3]
[343856382,1732978259035,-1477.13,0.00026027,3]
[343856384,1732978259045,-500.0,0.00026027,3]
[343856386,1732978259058,-1690.79,0.00026027,3]
[343856388,1732978259067,-500.0,0.00026027,3]
[343856390,1732978259078,-500.0,0.00026027,3]
[343856392,1732978259087,-500.0,0.00026027,3]
[343856394,1732978259097,-492.70764115,0.00026027,3]
[343856396,1732978259106,-498.58193212,0.00026027,3]
[343856398,1732978259115,-500.0,0.00026027,3]
[343856399,1732978259125,-562.51,0.00026027,3]
[343856402,1732978259138,-500.0,0.00026027,3]
[343856404,1732978259156,-500.0,0.00026027,3]
[343856407,1732978259172,-500.0,0.00026027,3]
[343856409,1732978259186,-500.0,0.00026027,3]
[343856412,1732978259201,-500.0,0.00026027,3]
[343856415,1732978259218,-621.8,0.00026027,3]
[343856417,1732978259233,-843.42,0.00026027,3]
[343856420,1732978259251,-500.0,0.00026027,3]
[343856423,1732978259266,-653.03,0.00026027,3]
[343856425,1732978259280,-807.02,0.00026027,3]
[343856428,1732978259297,-500.0,0.00026027,3]
[343856430,1732978259311,-3841.58,0.00026027,3]
[343856433,1732978259322,-500.0,0.00026027,3]
[343856435,1732978259336,-500.0,0.00026027,3]
[343856438,1732978259352,-500.0,0.00026027,3]
[343856440,1732978259368,-541.03,0.00026027,3]
[343856443,1732978259385,-500.0,0.00026027,3]
[343856446,1732978259402,-500.0,0.00026027,3]
[343856448,1732978259414,-13125.9,0.00026027,3]
[343856450,1732978259426,-500.0,0.00026027,3]
[343856453,1732978259444,-506.83980945,0.00026027,3]
[343856455,1732978259459,-8701.11,0.00026027,3]
[343856458,1732978259471,-500.0,0.00026027,3]
[343856460,1732978259486,-2444.37,0.00026027,3]
[343856462,1732978259497,-500.0,0.00026027,3]
[343856464,1732978259509,-647.65,0.00026027,3]
[343856467,1732978259523,-587.99,0.00026027,3]
[343856469,1732978259537,-445.59706198,0.00026027,3]
[343856472,1732978259550,-500.0,0.00026027,3]
[343856474,1732978259563,-500.0,0.00026027,3]
[343856476,1732978259576,-2719.67,0.00026027,3]
[343856479,1732978259588,-500.0,0.00026027,3]
[343856481,1732978259601,-2735.5,0.00026027,2]
[343856483,1732978259614,-500.0,0.00026027,3]
[343856486,1732978259627,-500.0,0.00026027,3]
[343856488,1732978259642,-596.5,0.00026027,3]
[343856490,1732978259655,-500.0,0.00026027,3]
[343856493,1732978259668,-866.85,0.00026027,3]
[343856495,1732978259683,-500.0,0.00026027,3]
[343856497,1732978259697,-500.0,0.00026027,3]
[343856499,1732978259710,-500.0,0.00026027,3]
[343856502,1732978259722,-500.0,0.00026027,3]
[343856504,1732978259735,-3630.19,0.00026027,3]
[343856506,1732978259747,-500.0,0.00026027,3]
[343856508,1732978259761,-760.16,0.00026027,3]
[343856511,1732978259774,-1479.53,0.00026027,3]
[343856513,1732978259787,-500.0,0.00026027,3]
[343856515,1732978259799,-502.02,0.00026027,3]
[343856517,1732978259812,-775.18,0.00026027,3]
[343856520,1732978259825,-500.0,0.00026027,3]
[343856522,1732978259837,-500.0,0.00026027,3]
[343856524,1732978259850,-634.90993357,0.00026027,3]
[343856527,1732978259864,-160.0,0.00026182,3]
[343856529,1732978259877,-1500.0,0.00026222,2]
[343856531,1732978259890,-1500.0,0.00026222,2]
[343856533,1732978259900,-1500.0,0.00026222,2]
[343856535,1732978259910,-1882.38365506,0.0002623,2]
[343856537,1732978259920,-500.0,0.00026301,7]
[343856539,1732978259931,-500.0,0.00026301,3]
[343856541,1732978259943,-500.0,0.00026301,3]
[343856543,1732978259952,-556.71,0.00026301,3]
[343856545,1732978259962,-500.0,0.00026301,3]
[343856547,1732978259971,-500.0,0.00026301,3]
[343856549,1732978259980,-711.92,0.00026301,3]
[343856551,1732978259991,-500.0,0.00026301,3]
[343856553,1732978260000,-500.0,0.00026301,3]
[343856555,1732978260010,-288.49969985,0.00026301,3]
[343856557,1732978260020,-755.26,0.00026301,3]
[343856571,1732978260171,-500.0,0.00026301,3]
[343856573,1732978260187,-500.0,0.00026301,3]
[343856575,1732978260197,-273.73000001,0.00026301,3]
[343856577,1732978260207,-500.0,0.00026301,3]
[343856579,1732978260218,-500.0,0.00026301,3]
[343856581,1732978260227,-500.0,0.00026301,3]
[343856583,1732978260237,-711.86,0.00026301,3]
[343856585,1732978260248,-500.0,0.00026301,3]
[343856586,1732978260258,-500.0,0.00026301,3]
[343856588,1732978260267,-500.0,0.00026301,3]
[343856590,1732978260276,-500.0,0.00026301,3]
[343856592,1732978260287,-500.0,0.00026301,3]
[343856594,1732978260296,-500.0,0.00026301,3]
[343856596,1732978260306,-500.0,0.00026301,3]
[343856598,1732978260316,-874.23,0.00026301,3]
[343856600,1732978260324,-500.0,0.00026301,3]
[343856602,1732978260345,-870.24,0.00026301,3]
[343856604,1732978260356,-500.0,0.00026301,3]
[343856605,1732978260365,-795.2,0.00026301,3]
[343856606,1732978260375,-500.0,0.00026301,3]
[343856607,1732978260391,-3086.24,0.00026301,3]
[343856608,1732978260400,-500.0,0.00026301,3]
[343856609,1732978260409,-500.0,0.00026301,3]
[343856610,1732978260420,-699.85,0.00026301,3]
[343856611,1732978260431,-1136.5,0.00026301,3]
[343856612,1732978260441,-500.0,0.00026301,3]
[343856613,1732978260451,-500.0,0.00026301,3]
[343856614,1732978260462,-884.14,0.00026301,3]
[343856615,1732978260472,-500.0,0.00026301,3]
[343856616,1732978260482,-500.0,0.00026301,3]
[343856617,1732978260491,-500.0,0.00026301,3]
[343856618,1732978260502,-500.0,0.00026301,3]
[343856619,1732978260511,-534.25,0.00026301,3]
[343856620,1732978260522,-500.0,0.00026301,3]
[343856621,1732978260531,-500.0,0.00026301,3]
[343856622,1732978260540,-500.0,0.00026301,3]
[343856623,1732978260550,-500.0,0.00026301,3]
[343856624,1732978260559,-612.71,0.00026301,3]
[343856625,1732978260568,-500.0,0.00026301,3]
[343856626,1732978260578,-500.0,0.00026301,3]
[343856627,1732978260588,-500.0,0.00026301,3]
[343856628,1732978260598,-500.0,0.00026301,3]
[343856629,1732978260608,-819.07,0.00026301,3]
[343856630,1732978260618,-500.0,0.00026301,3]
[343856631,1732978260628,-642.87,0.00026301,3]
[343856633,1732978260641,-959.64,0.00026301,3]
[343856634,1732978260651,-500.0,0.00026301,3]
[343856635,1732978260660,-500.0,0.00026301,3]
[343856636,1732978260670,-500.0,0.00026301,3]
[343856639,1732978260680,-500.0,0.00026301,3]
[343856641,1732978260690,-500.0,0.00026301,3]
[343856642,1732978260700,-500.0,0.00026301,3]
[343856644,1732978260710,-500.0,0.00026301,3]
[343856646,1732978260719,-3373.93,0.00026301,3]
[343856648,1732978260729,-512.49,0.00026301,3]
[343856650,1732978260738,-500.0,0.00026301,3]
[343856652,1732978260747,-1477.13,0.00026301,3]
[343856654,1732978260757,-500.0,0.00026301,3]
[343856656,1732978260768,-1690.79,0.00026301,3]
[343856658,1732978260777,-500.0,0.00026301,3]
[343856660,1732978260788,-500.0,0.00026301,3]
[343856662,1732978260798,-500.0,0.00026301,3]
[343856664,1732978260808,-417.51312112,0.00026301,3]
[343856666,1732978260818,-562.51,0.00026301,3]
[343856668,1732978260827,-500.0,0.00026301,3]
[343856670,1732978260838,-500.0,0.00026301,3]
[343856672,1732978260847,-500.0,0.00026301,3]
[343856674,1732978260856,-500.0,0.00026301,3]
[343856676,1732978260866,-621.8,0.00026301,3]
[343856678,1732978260876,-843.42,0.00026301,3]
[343856680,1732978260887,-500.0,0.00026301,3]
[343856682,1732978260896,-653.03,0.00026301,3]
[343856684,1732978260906,-500.0,0.00026301,3]
[343856686,1732978260916,-807.02,0.00026301,3]
[343856688,1732978260926,-3841.58,0.00026301,3]
[343856690,1732978260936,-500.0,0.00026301,3]
[343856692,1732978260946,-500.0,0.00026301,3]
[343856694,1732978260955,-500.0,0.00026301,3]
[343856696,1732978260965,-541.03,0.00026301,3]
[343856698,1732978260975,-500.0,0.00026301,3]
[343856700,1732978260984,-507.81028254,0.00026301,3]
[343856702,1732978260994,-13125.9,0.00026301,3]
[343856704,1732978261003,-500.0,0.00026301,3]
[343856706,1732978261014,-8701.11,0.00026301,3]
[343856708,1732978261023,-500.0,0.00026301,3]
[343856710,1732978261033,-2444.37,0.00026301,3]
[343856712,1732978261043,-500.0,0.00026301,3]
[343856714,1732978261054,-647.65,0.00026301,3]
[343856716,1732978261065,-587.99,0.00026301,3]
[343856718,1732978261075,-500.0,0.00026301,3]
[343856720,1732978261084,-500.0,0.00026301,3]
[343856721,1732978261093,-2719.67,0.00026301,3]
[343856723,1732978261104,-500.0,0.00026301,3]
[343856725,1732978261114,-2735.5,0.00026301,2]
[343856727,1732978261124,-500.0,0.00026301,3]
[343856729,1732978261136,-346.79611061,0.00026301,3]
[343856731,1732978261145,-596.5,0.00026301,3]
[343856733,1732978261155,-500.0,0.00026301,3]
[343856735,1732978261164,-866.85,0.00026301,3]
[343856737,1732978261174,-500.0,0.00026301,3]
[343856739,1732978261183,-500.0,0.00026301,3]
[343856741,1732978261193,-500.0,0.00026301,3]
[343856743,1732978261203,-515.83098343,0.00026301,3]
[343856745,1732978261214,-3630.19,0.00026301,3]
[343856747,1732978261223,-500.0,0.00026301,3]
[343856749,1732978261232,-760.16,0.00026301,3]
[343856751,1732978261242,-1479.53,0.00026301,3]
[343856753,1732978261252,-500.0,0.00026301,3]
[343856755,1732978261261,-502.02,0.00026301,3]
[343856757,1732978261271,-775.18,0.00026301,3]
[343856759,1732978261280,-500.0,0.00026301,3]
[343856761,1732978261289,-500.0,0.00026301,3]
[343856763,1732978261298,-282.0,0.000264,2]
[343856765,1732978261307,-1528.7940763,0.00026522,2]
[343856767,1732978261317,-500.0,0.0002655,7]
[343856769,1732978261326,-500.0,0.00026575,7]
[343856771,1732978261335,-500.0,0.00026575,3]
[343856773,1732978261345,-500.0,0.00026575,3]
[343856775,1732978261355,-556.71,0.00026575,3]
[343856777,1732978261365,-500.0,0.00026575,3]
[343856779,1732978261375,-511.68989361,0.00026575,3]
[343856781,1732978261386,-711.92,0.00026575,3]
[343856783,1732978261397,-500.0,0.00026575,3]
[343856785,1732978261407,-500.0,0.00026575,3]
[343856787,1732978261416,-755.26,0.00026575,3]
[343856789,1732978261426,-542.86362809,0.00026575,3]
[343856791,1732978261435,-500.0,0.00026575,3]
[343856793,1732978261445,-500.0,0.00026575,3]
[343856795,1732978261454,-500.0,0.00026575,3]
[343856797,1732978261464,-500.0,0.00026575,3]
[343856799,1732978261474,-711.86,0.00026575,3]
[343856801,1732978261484,-268.14414581,0.00026575,3]
[343856803,1732978261494,-500.0,0.00026575,3]
[343856805,1732978261503,-500.0,0.00026575,3]
[343856807,1732978261513,-500.0,0.00026575,3]
[343856809,1732978261523,-500.0,0.00026575,3]
[343856811,1732978261533,-500.0,0.00026575,3]
[343856813,1732978261543,-500.0,0.00026575,3]
[343856815,1732978261552,-874.23,0.00026575,3]
[343856817,1732978261561,-500.0,0.00026575,3]
[343856819,1732978261571,-870.24,0.00026575,3]
[343856821,1732978261580,-518.98341975,0.00026575,3]
[343856823,1732978261589,-795.2,0.00026575,3]
[343856825,1732978261599,-500.0,0.00026575,3]
[343856827,1732978261609,-3086.24,0.00026575,3]
[343856829,1732978261619,-500.0,0.00026575,3]
[343856831,1732978261628,-500.0,0.00026575,3]
[343856833,1732978261640,-699.85,0.00026575,3]
[343856835,1732978261649,-1136.5,0.00026575,3]
[343856837,1732978261658,-500.0,0.00026575,3]
[343856839,1732978261668,-500.0,0.00026575,3]
[343856841,1732978261678,-884.14,0.00026575,3]
[343856843,1732978261688,-500.0,0.00026575,3]
[343856845,1732978261698,-500.0,0.00026575,3]
[343856847,1732978261707,-500.0,0.00026575,3]
[343856849,1732978261716,-516.19,0.00026575,3]
[343856851,1732978261727,-534.25,0.00026575,3]
[343856853,1732978261737,-500.0,0.00026575,3]
[343856855,1732978261746,-249.43235047,0.00026575,3]
[343856857,1732978261756,-500.0,0.00026575,3]
[343856859,1732978261766,-507.56312093,0.00026575,3]
[343856861,1732978261775,-612.71,0.00026575,3]
[343856863,1732978261786,-500.0,0.00026575,3]
[343856865,1732978261796,-500.0,0.00026575,3]
[343856867,1732978261807,-500.0,0.00026575,3]
[343856869,1732978261816,-500.0,0.00026575,3]
[343856871,1732978261825,-819.07,0.00026575,3]
[343856873,1732978261836,-500.0,0.00026575,3]
[343856874,1732978261845,-642.87,0.00026575,3]
[343856877,1732978261855,-959.64,0.00026575,3]
[343856878,1732978261865,-500.0,0.00026575,3]
[343856880,1732978261876,-500.0,0.00026575,3]
[343856882,1732978261887,-500.0,0.00026575,3]
[343856884,1732978261897,-500.0,0.00026575,3]
[343856886,1732978261906,-500.0,0.00026575,3]
[343856888,1732978261916,-500.0,0.00026575,3]
[343856890,1732978261925,-500.0,0.00026575,3]
[343856891,1732978261935,-3373.93,0.00026575,3]
[343856893,1732978261944,-512.49,0.00026575,3]
[343856895,1732978261954,-500.0,0.00026575,3]
[343856897,1732978261963,-1477.13,0.00026575,3]
[343856899,1732978261972,-500.0,0.00026575,3]
[343856901,1732978261982,-1690.79,0.00026575,3]
[343856903,1732978261991,-500.0,0.00026575,3]
[343856905,1732978262001,-500.0,0.00026575,3]
[343856907,1732978262010,-186.10239142,0.00026575,3]
[343856909,1732978262025,-562.51,0.00026575,3]
[343856911,1732978262035,-500.0,0.00026575,3]
[343856913,1732978262044,-500.0,0.00026575,3]
[343856915,1732978262056,-500.0,0.00026575,3]
[343856917,1732978262065,-500.0,0.00026575,3]
[343856919,1732978262075,-621.8,0.00026575,3]
[343856921,1732978262084,-843.42,0.00026575,3]
[343856923,1732978262094,-500.0,0.00026575,3]
[343856925,1732978262104,-653.03,0.00026575,3]
[343856927,1732978262114,-177.47133179,0.00026575,3]
[343856929,1732978262125,-807.02,0.00026575,3]
[343856931,1732978262140,-3841.58,0.00026575,3]
[343856933,1732978262150,-500.0,0.00026575,3]
[343856935,1732978262159,-578.27,0.00026575,3]
[343856937,1732978262169,-500.0,0.00026575,3]
[343856939,1732978262179,-541.03,0.00026575,3]
[343856941,1732978262188,-500.0,0.00026575,3]
[343856943,1732978262198,-13125.9,0.00026575,3]
[343856945,1732978262208,-500.0,0.00026575,3]
[343856947,1732978262218,-8701.11,0.00026575,3]
[343856949,1732978262228,-500.0,0.00026575,3]
[343856951,1732978262238,-2444.37,0.00026575,3]
[343856953,1732978262247,-500.0,0.00026575,3]
[343856955,1732978262257,-647.65,0.00026575,3]
[343856957,1732978262266,-587.99,0.00026575,3]
[343856959,1732978262276,-500.0,0.00026575,3]
[343856961,1732978262286,-339.45729255,0.00026575,3]
[343856963,1732978262295,-2719.67,0.00026575,3]
[343856965,1732978262305,-500.0,0.00026575,3]
[343856967,1732978262314,-2735.5,0.00026575,2]
[343856969,1732978262324,-500.0,0.00026575,3]
[343856971,1732978262333,-596.5,0.00026575,3]
[343856973,1732978262343,-500.0,0.00026575,3]
[343856975,1732978262353,-866.85,0.00026575,3]
[343856977,1732978262363,-500.0,0.00026575,3]
[343856979,1732978262372,-500.0,0.00026575,3]
[343856981,1732978262383,-500.0,0.00026575,3]
[343856983,1732978262398,-3630.19,0.00026575,3]
[343856984,1732978262411,-500.0,0.00026575,3]
[343856986,1732978262422,-760.16,0.00026575,3]
[343856988,1732978262432,-1479.53,0.00026575,3]
[343856990,1732978262441,-500.0,0.00026575,3]
[343856993,1732978262451,-502.02,0.00026575,3]
[343856994,1732978262460,-775.18,0.00026575,3]
[343856997,1732978262470,-500.0,0.00026575,3]
[343856999,1732978262480,-500.0,0.00026575,3]
[343857000,1732978262489,-198.798247,0.000267,2]
[343857002,1732978262498,-500.0,0.00026849,7]
[343857005,1732978262508,-500.0,0.00026849,3]
[343857006,1732978262517,-500.0,0.00026849,3]
[343857009,1732978262527,-556.71,0.00026849,3]
[343857010,1732978262536,-385.95948969,0.00026849,3]
[343857012,1732978262546,-711.92,0.00026849,3]
[343857014,1732978262555,-504.86296051,0.00026849,3]
[343857016,1732978262564,-755.26,0.00026849,3]
[343857018,1732978262574,-500.0,0.00026849,3]
[343857020,1732978262583,-500.0,0.00026849,3]
[343857022,1732978262593,-500.0,0.00026849,3]
[343857024,1732978262602,-500.0,0.00026849,3]
[343857026,1732978262612,-711.86,0.00026849,3]
[343857028,1732978262621,-500.0,0.00026849,3]
[343857039,1732978262722,-500.0,0.00026849,3]
[343857041,1732978262732,-500.0,0.00026849,3]
[343857043,1732978262742,-500.0,0.00026849,3]
[343857045,1732978262752,-500.0,0.00026849,3]
[343857047,1732978262761,-500.0,0.00026849,3]
[343857049,1732978262771,-874.23,0.00026849,3]
[343857051,1732978262781,-500.0,0.00026849,3]
[343857053,1732978262790,-870.24,0.00026849,3]
[343857055,1732978262799,-795.2,0.00026849,3]
[343857057,1732978262809,-3086.24,0.00026849,3]
[343857059,1732978262818,-500.0,0.00026849,3]
[343857061,1732978262828,-216.4652236,0.00026849,3]
[343857063,1732978262838,-699.85,0.00026849,3]
[343857065,1732978262849,-1136.5,0.00026849,3]
[343857067,1732978262860,-500.0,0.00026849,3]
[343857069,1732978262870,-500.0,0.00026849,3]
[343857071,1732978262879,-884.14,0.00026849,3]
[343857073,1732978262891,-500.0,0.00026849,3]
[343857075,1732978262901,-500.0,0.00026849,3]
[343857077,1732978262910,-500.0,0.00026849,3]
[343857079,1732978262920,-534.25,0.00026849,3]
[343857081,1732978262929,-500.0,0.00026849,3]